Cogmind - Beta 11.1 @@@ ROGUE MODE // 2022.07.20 @ 02:19:55 Player: woegarden Result: Destroyed by S-10 Pest with Light Assault Rifle Performance ------------- Evolutions (2) 1000 Regions Visited (4) 800 Robots Destroyed (47) 235 Value Destroyed (1043) 1043 Prototype IDs (4) 80 Alien Tech Used (0) 0 Bonus (360) 360 TOTAL SCORE: 3518 Bonus ------- High Alert Combat Kills 57 Follower Combat Kills 336 Friendly Fire -33 Cogmind --------- Core Integrity 0/550 Matter 74/300 Energy 37/240 System Corruption 0% Temperature Cool (0) Movement Walking (190) Ox1 Location -8/Materials Parts ------- > --- POWER (1) -------- Nuclear Core > --- PROPULSION (5) --- Carbon-fiber Leg Cesium-ion Thruster > --- UTILITY (3) ------ Medium Storage Unit > --- WEAPON (2) ------- (None) > --- INVENTORY (10) --- Cryofiber Web Trap Scanner Improved Sensor Array Seismic Detector Drone Bay (2/2) Drone Bay (2/2) Peak State ------------ > --- POWER ------------ (None) > --- PROPULSION ------- Xenon Bombardment Thruster Xenon Bombardment Thruster Xenon Bombardment Thruster Xenon Bombardment Thruster > --- UTILITY ---------- Medium Storage Unit Weight Redist. System > --- WEAPON ----------- Flak Gun > --- INVENTORY -------- Nuclear Core Carbon-fiber Leg Cesium-ion Thruster Cryofiber Web Trap Scanner Improved Sensor Array Seismic Detector Drone Bay Drone Bay [Rating: 25] Favorites ----------- Power Improved Ion Engine Engine Improved Ion Engine Power Core Nuclear Core Propulsion Aluminum Leg Treads Light Treads Leg Aluminum Leg Flight Unit VTOL Module Utility Terrain Scanner Device Terrain Scanner Storage Large Storage Unit Protection Light Armor Plating Weapon Small Laser Energy Gun Small Laser Energy Cannon Beam Cannon Ballistic Gun Heavy Assault Rifle Launcher Grenade Launcher Build | -11 -10 -9 -9 -8 ------- Run | Scr Mat Mat Sto Mat Slots Evolved 4 | . . 2 . 2 Power . | . . . . . Propulsion 3 | . . 1 . 2 Utility 1 | . . 1 . . Weapon . | . . . . . Parts Attached 83 | . 6 18 37 22 Power 11 | . . 3 6 2 Engine 10 | . . 3 6 1 Core 1 | . . . . 1 Reactor . | . . . . . Propulsion 34 | . 1 8 12 13 Treads 5 | . . . 5 . Leg 11 | . 1 5 4 1 Wheel . | . . . . . Hover . | . . . . . Flight 18 | . . 3 3 12 Utility 14 | . 2 3 6 3 Device 6 | . 1 1 3 1 Storage 6 | . 1 1 2 2 Processor . | . . . . . Hackware . | . . . . . Protection 2 | . . 1 1 . Artifact . | . . . . . Weapon 24 | . 3 4 13 4 Energy Gun 6 | . 2 2 1 1 Energy Cannon 5 | . . . 5 . Ballistic Gun 12 | . 1 2 6 3 Ballistic Cannon . | . . . . . Launcher 1 | . . . 1 . Special Weapon . | . . . . . Impact Weapon . | . . . . . Slashing Weapon . | . . . . . Piercing Weapon . | . . . . . Special Melee Weapon . | . . . . . Unidentified Prototypes 4 | . . . 3 1 Parts Lost 33 | . 1 4 12 16 Power 5 | . . 1 2 2 Propulsion 15 | . . 2 4 9 Utility 5 | . . . 3 2 Weapon 8 | . 1 1 3 3 Highest Loss Streak 16 | . 1 2 5 16 To Critical Strikes . | . . . . . Average Slot Usage (%) 88 | . 96 84 88 73 Engine 10 | . 14 8 10 6 Treads 4 | . . . 7 . Leg 17 | . 27 18 16 . Flight 6 | . . 7 4 34 Device 13 | . 11 11 15 11 Storage 11 | . 14 11 11 9 Protection 2 | . . 7 2 . Energy Gun 6 | . 21 10 . 4 Energy Cannon 4 | . . . 9 . Ballistic Gun 9 | . 6 10 9 7 Naked Turns . | . . . . . Heaviest Build 43 | 10 16 33 43 23 Greatest Support 72 | 20 20 33 72 27 Greatest Overweight (x) 11 | . 1 7 11 3 Average Overweight (x) . | . . . . . Largest Inventory Capacity 15 | 8 10 15 15 15 Average Capacity 11 | 8 8 10 14 10 Most Carried 15 | 6 10 15 15 13 Average Carried 11 | 6 7 9 12 9 Final Capacity 15 | 8 10 15 15 10 Final Carried 15 | 6 10 15 14 6 Class Distribution -------------------- 49% | Scavenger-Mutant 47% | Mutant Dominant Class ---------------- Mutant | -10/Materials Scavenger-Mutant | -9/Materials Scavenger-Mutant | -9/Storage Mutant | -8/Materials Resources | -11 -10 -9 -9 -8 ----------- Run | Scr Mat Mat Sto Mat Matter Collected 943 | 200 63 113 567 . Remotely . | . . . . . Salvage Created 1559 | . 360 268 925 6 Parts 102 | . 23 13 65 1 Haulers Intercepted 6 | . 2 1 3 . Recyclers Shooed 3 | . . . 3 . Parts Field Recycled . | . . . . . Retrieved Matter . | . . . . . Parts Self-Destructed . | . . . . . Prevented . | . . . . . Kills | -11 -10 -9 -9 -8 ------- Run | Scr Mat Mat Sto Mat Combat Hostiles Destroyed 35 | . 10 4 20 1 Guns 18 | . 10 4 3 1 Cannons 11 | . . . 11 . AOE 5 | . . . 5 . Classes Destroyed 8 | . 3 1 4 . Builder 4 | . . . 4 . Hauler 6 | . 2 1 3 . Recycler 1 | . . . 1 . Watcher 1 | . . . 1 . Swarmer 14 | . 6 . 7 1 Grunt 11 | . 4 1 6 . Duelist 1 | . . . 1 . Sentry 9 | . . 3 6 . Best Kill Streak 11 | . 5 2 11 1 Combat Bots Only 8 | . 5 2 8 1 Max Kills in Single Turn 5 | . 1 1 5 1 Gunslinging . | . . . . . Exploded 4 | . . . 4 . Melee . | . . . . . Uniques/NPCs Destroyed . | . . . . . Combat | -11 -10 -9 -9 -8 -------- Run | Scr Mat Mat Sto Mat Damage Taken 4136 | . 338 382 2014 1402 Core 996 | . 109 57 277 553 Absorbed by Shields . | . . . . . Core Remaining (%) 57 | 100 56 . 16 . Volleys Fired 133 | . 27 14 88 4 Largest 2 | . 2 2 2 1 Hottest 158 | . 80 79 158 28 Shots Fired 209 | . 47 24 134 4 Gun 146 | . 47 24 71 4 Cannon 59 | . . . 59 . Launcher 4 | . . . 4 . Special . | . . . . . Kinetic 88 | . 3 10 71 4 Thermal 117 | . 44 14 59 . Explosive 4 | . . . 4 . Electromagnetic . | . . . . . Robot Hit Streak 17 | . 8 7 17 5 Robot Miss Streak 4 | . 3 2 2 4 Penetration Max . | . . . . . Secondary Targets . | . . . . . Shots Hit Robots 130 | . 26 17 84 3 Core Hits 78 | . 21 9 46 2 Critical Kills 1 | . . . 1 . Critical Parts Destroyed . | . . . . . Critical Strikes 1 | . . . 1 . Meltdown 1 | . . . 1 . Melee Attacks . | . . . . . Impact . | . . . . . Slashing . | . . . . . Piercing . | . . . . . Sneak Attacks . | . . . . . Combat Hostiles . | . . . . . Follow-up Attacks . | . . . . . Damage Inflicted 2611 | . 300 206 2052 53 Guns 1332 | . 295 206 778 53 Cannons 837 | . . . 837 . Explosions 396 | . . . 396 . Melee . | . . . . . Ramming 46 | . 5 . 41 . Kinetic 911 | . 17 63 778 53 Thermal 1258 | . 278 143 837 . Explosive 396 | . . . 396 . Electromagnetic . | . . . . . Impact . | . . . . . Slashing . | . . . . . Piercing . | . . . . . Highest Corruption 3 | . . . 3 . Average Corruption 2 | . . . 2 . Corruption Purged . | . . . . . Corruption Blocked . | . . . . . Effects 12 | . . . 12 . Message Errors 8 | . . . 8 . Matter Fused 2 | . . . 2 . Heat Flow Errors 1 | . . . 1 . Data Loss (major) 1 | . . . 1 . Overload Shots . | . . . . . Overflow Damage 5 | . . . 5 . Projectiles 2 | . . . 2 . Explosions 3 | . . . 3 . Melee . | . . . . . Knockbacks . | . . . . . Impact . | . . . . . Kinetic . | . . . . . Secondary . | . . . . . Self-Inflicted Damage 74 | . . . 74 . Shots 3 | . . . 3 . Rammed . | . . . . . Targets Rammed 8 | . 2 1 5 . Kicked 8 | . 2 1 5 . Crushed . | . . . . . Highest Temperature 299 | . 168 59 299 10 Average Temperature 63 | . 54 28 76 6 Received Heat Transfer 1161 | . 126 135 603 297 Siege Activations . | . . . . . Robots Corrupted . | . . . . . Combat Hostiles . | . . . . . Parts Fried . | . . . . . Impact Corruptions . | . . . . . Robots Melted 1 | . . . 1 . Combat Hostiles 1 | . . . 1 . Parts Melted 4 | . 1 . 3 . Heat Transferred 2457 | . 625 370 1462 . Parts Sabotaged . | . . . . . Parts Stolen . | . . . . . Parts Stripped . | . . . . . Power Chain Reactions . | . . . . . Missiles Intercepted . | . . . . . Alert | -11 -10 -9 -9 -8 ------- Run | Scr Mat Mat Sto Mat Peak Influence 667 | . 264 102 667 307 Initial 252 | . . 2 2 252 Average 254 | . 96 66 376 266 Maximum Alert Level 2 | . 1 . 2 1 Low Security (%) 51 | 100 73 100 33 . Level 1 18 | . 26 . 9 100 Level 2 30 | . . . 57 . Level 3 . | . . . . . Level 4 . | . . . . . Level 5 . | . . . . . High Security . | . . . . . Max Security . | . . . . . Squads Dispatched 8 | . 1 . 6 1 Investigation 3 | . 1 . 2 . Extermination . | . . . . . Reinforcement 2 | . . . 1 1 Assault 2 | . . . 2 . Garrison 1 | . . . 1 . Intercept . | . . . . . Searches Triggered . | . . . . . Construction Impeded . | . . . . . Haulers Reinforced . | . . . . . Active Scanning Responses . | . . . . . Cargo Convoy Interrupts . | . . . . . Stealth | -11 -10 -9 -9 -8 --------- Run | Scr Mat Mat Sto Mat Distress Signals 5 | . 1 . 3 1 Communications Jammed . | . . . . . Distress Signals . | . . . . . Times Spotted 81 | . 14 4 49 14 Peak Tracking Total 10 | . 7 2 10 8 Tactical Retreats 4 | . . . 1 3 Traps | -11 -10 -9 -9 -8 ------- Run | Scr Mat Mat Sto Mat Traps Triggered 12 | . 1 . 10 1 Indirectly . | . . . . . Trap Hack Attempts . | . . . . . Triggered . | . . . . . Disarmed . | . . . . . Reprogrammed . | . . . . . Reused . | . . . . . Traps Extracted . | . . . . . Installed . | . . . . . Triggered . | . . . . . Machines | -11 -10 -9 -9 -8 ---------- Run | Scr Mat Mat Sto Mat Machines Disabled 1 | . . . 1 . Max in Single Turn 1 | . . . 1 . Machines Sabotaged . | . . . . . Garrisons Compromised . | . . . . . Overloaded Fab Kills . | . . . . . Hacking | -11 -10 -9 -9 -8 --------- Run | Scr Mat Mat Sto Mat Machines Accessed 8 | . 4 1 3 . Terminals 7 | . 4 . 3 . Fabricators . | . . . . . Repair Stations 1 | . . 1 . . Recycling Units . | . . . . . Scanalyzers . | . . . . . Garrison Access . | . . . . . Total Hacks 13 | . 9 1 3 . Successful 6 | . 3 . 3 . Failed 7 | . 6 1 . . Catastrophic . | . . . . . Database Lockouts . | . . . . . Manual 7 | . 7 . . . Terminals 12 | . 9 . 3 . Fabricators . | . . . . . Repair Stations 1 | . . 1 . . Recycling Units . | . . . . . Scanalyzers . | . . . . . Garrison Access . | . . . . . Terminal Hacks 6 | . 3 . 3 . Record 2 | . 1 . 1 . Part Schematic 1 | . 1 . . . Open Door 2 | . . . 2 . Unreport Threat 1 | . 1 . . . Fabricator Hacks . | . . . . . Repair Station Hacks . | . . . . . Recycling Unit Hacks . | . . . . . Scanalyzer . | . . . . . Garrison Access Hacks . | . . . . . Unauthorized Hacks . | . . . . . Terminals . | . . . . . Fabricators . | . . . . . Repair Stations . | . . . . . Recycling Units . | . . . . . Scanalyzers . | . . . . . Garrison Access . | . . . . . Data Cores Recovered . | . . . . . Used . | . . . . . Hacking Detections 4 | . 4 . . . Full Trace Events 1 | . 1 . . . Feedback Events . | . . . . . Feedback Blocked . | . . . . . Robot Schematics Acquired . | . . . . . Robots Built . | . . . . . Authchips . | . . . . . Time . | . . . . . Total Robot Build Rating . | . . . . . Part Schematics Acquired 1 | . 1 . . . Parts Built . | . . . . . Authchips . | . . . . . Time . | . . . . . Total Part Build Rating . | . . . . . Parts Repaired . | . . . . . Time . | . . . . . Parts Recycled . | . . . . . Recycled Matter . | . . . . . Retrieved Matter . | . . . . . Retrieved Components . | . . . . . Parts Scanalyzed . | . . . . . Part Schematics Acquired . | . . . . . Parts Damaged . | . . . . . Bothacking | -11 -10 -9 -9 -8 ------------ Run | Scr Mat Mat Sto Mat Used RIF Installer . | . . . . . Robots Hacked . | . . . . . Non-combat . | . . . . . Combat . | . . . . . Robot Hacks Applied . | . . . . . Relay Couplers Released . | . . . . . Fabnet Peak Effective % . | . . . . . Robots Rewired . | . . . . . Allies Hacked . | . . . . . Hacks Repelled . | . . . . . Allies | -11 -10 -9 -9 -8 -------- Run | Scr Mat Mat Sto Mat Total Allies 2 | . . . 2 . Largest Group 2 | . . . 2 . Highest-Rated Group 62 | . . . 62 . Highest-Rated Ally 31 | . . . 31 . Total Orders . | . . . . . Ally Attacks 48 | . . . 48 . Total Damage 714 | . . . 714 . Kills 15 | . . . 15 . Allies Corrupted . | . . . . . Allies Melted . | . . . . . Intel | -11 -10 -9 -9 -8 ------- Run | Scr Mat Mat Sto Mat Robot Analysis Total . | . . . . . Derelict Logs Recovered . | . . . . . Drone Launches . | . . . . . Drone Recoveries . | . . . . . Exploration | -11 -10 -9 -9 -8 ------------- Run | Scr Mat Mat Sto Mat Turns Passed 2530 | 5 513 458 1363 191 Spaces Moved 1529 | 5 340 245 621 318 Core 41 | . . 16 6 19 Treads 66 | . . . 66 . Legs 1025 | 5 340 229 450 1 Wheels . | . . . . . Hover . | . . . . . Flight 397 | . . . 99 298 Fastest Speed 24 | 120 120 120 29 24 Average Speed 127 | 120 120 156 168 31 Slowest Speed 600 | 120 190 400 600 200 Overloaded Moves . | . . . . . Propulsion Burnouts . | . . . . . Robots Hopped 6 | . . . . 6 Cave-ins Triggered . | . . . . . Exploration Rate (%) 35 | 2 52 18 74 32 Regions Visited 4 Branch Regions 1 Pre-discovered Areas . | . . . . . Known Exits Taken . | . . . . . Unknown Exits Taken 4 | 1 1 1 1 . Scrap Searched . | . . . . . Spaces Dug . | . . . . . Terrain Destroyed 23 | . . . 23 . Melee . | . . . . . Projectile 3 | . . . 3 . AOE 20 | . . . 20 . Terrain Rammed . | . . . . . Walls Destroyed . | . . . . . Machines Disabled . | . . . . . Actions | -11 -10 -9 -9 -8 --------- Run | Scr Mat Mat Sto Mat Total 1900 | 4 398 295 803 400 Wait 82 | . 9 2 26 45 Move 1515 | 4 339 244 620 308 Hop 4 | . . . . 4 Pick Up 31 | . 9 8 7 7 Fast Attach 33 | . 5 4 18 6 Attach 26 | . . 7 7 12 Detach 12 | . . 4 5 3 Swap 24 | . 1 7 12 4 Drop 32 | . 6 4 15 7 Fire 133 | . 27 14 88 4 Melee . | . . . . . Ram . | . . . . . Kick 8 | . 2 1 5 . Crush . | . . . . . Escape Stasis . | . . . . . Rewire . | . . . . . Trap . | . . . . . Miscellaneous . | . . . . . Route ------- -11/Scrapyard -10/Materials -9/Materials -9/Storage -8/Materials History --------- Turn | Location | Event 1 | -11/Scrapyard | Discovered new exit (range 2) 6 | -11/Scrapyard | Entered Materials 306 | -10/Materials | Build established: Mutant 465 | -10/Materials | Discovered new exit (range 9) 519 | -10/Materials | Entered another Materials area 519 | -9/Materials | Evolved 2 slots: Propulsion x1, Utility x1 694 | -9/Materials | Discovered new exit (range 8) 881 | -9/Materials | Build established: Scavenger-Mutant 977 | -9/Materials | Entered Storage 1198 | -9/Storage | Lost 3 parts (1p1n1u) 1378 | -9/Storage | Build established: Mutant 1430 | -9/Storage | Core integrity fell below 50% 1460 | -9/Storage | Destroyed 8 combat bots 1464 | -9/Storage | Lost 5 parts (1p2n1u1w) 1516 | -9/Storage | Met a pair of Derelict thieves 1939 | -9/Storage | Build established: Scavenger-Mutant 2275 | -9/Storage | Garrison activated, responded to threat 2316 | -9/Storage | Discovered new exit (range 16) 2324 | -9/Storage | Core integrity fell below 20% 2334 | -9/Storage | Lost 3 parts (1n1u1w) 2340 | -9/Storage | Entered Materials 2340 | -8/Materials | Evolved 2 slots: Propulsion x2 2514 | -8/Materials | Core integrity fell below 50% 2525 | -8/Materials | Core integrity fell below 20% 2531 | -8/Materials | Destroyed by S-10 Pest with Light Assault Rifle Last Messages --------------- 02494_ Acquired Xenon Bombardment Thruster. 02495_ Imp. VTOL Module destroyed. 02497_ Acquired Xenon Bombardment Thruster. 02498_ Penetrated by Slug. 02498_ Imp. Ion Engine destroyed. 02498_ R-06 Scavenger collects Lgt. Assault Rifle. 02500_ R-06 Scavenger collects Lgt. Ion Engine. 02500_ Acquired Xenon Bombardment Thruster. 02501_ Critical hit (Burn: +37). 02503_ Xenon Bombardment Thruster destroyed. 02504_ Penetrated by Slug. 02507_ Flak Gun destroyed. 02507_ Xenon Bombardment Thruster destroyed. 02516_ Slug penetrates Wall. 02517_ O-16 Technician: "IFF HANDSHAKE FAILED. SECURING TERMINAL." 02519_ Penetrated by Slug. 02519_ Weight Redist. System destroyed. 02519_ Terminal disabled. 02524_ Critical hit (Burn: +37). 02527_ Penetrated by Slug. Map ----- +----------------------------------------------------+ | ?????????????????????????????????????????????????? | | ?????????????????????????????????????????????????? | | ?????????????????????????????????????????????????? | | ?????????????????????????????????????????????????? | | ?????????????????????????????????????????????????? | | ?????????????????????????????????????????????????? | | ?????????????????????????????????????????????????? | | ?????????????????????????????????????????????????? | | ?????????????????????????????????????????????????? | | ?????????????????????????????????????????????????? | | ?????????????????????????????????????????????????? | | ????????????????????? !??????????????????????????? | | ?????????????????? w ?????????????????????????? | | ????????????????# ?????????????????????????? | | ??????????????### ?????????????????????????? | | ?????????????? """??????????????????????? | | ????????????? """"?????????????????????? | | ????????????? k"""""????????????????????? | | ???????????? """"?????????????????????? | | ??????????? ?????????????????????? | | ??????????# ?????????????????????? | | ??????????# r ??????????????????????? | | ??????????# ! ??????????????????????? | | ??????????# #??????????????????????? | | ??????????# #??????????????????????? | | ??????????# @#??????????????????????? | | ??????????# """ """ #??????????????????????? | | ??????????# """ """ ##?????????????????????? | | ?????????## """ """ s"#?????????????????????? | | ?????????#T % o #?????????????????????? | | ??????????# g #?????????????????????? | | ??????????# """ == s ##?????????????????????? | | ???????#### """ ==g #??????????????????????? | | ???????+ """ = h #??????????????????????? | | ??????????# #??????????????????????? | | ??????????# % u #??????????????????????? | | ??????????# #"Y"#### ###????????????????????? | | ??????????# #"""#??# #????????????????????? | | ###+####### ########]][ #????????????????????? | | #]][[ #????????????????????? | | ! ########????????????????????? | | """ #???????????????????????????? | | ###/####### """ ????????????????????????? | | # ## """ ???????????????????????? | | # ## ####????????????????????????? | | # ## ! #???????????????????????????? | | # ## #???????????????????????????? | | # [ ## ???????????????????????????? | | # ! = ## #### ?????????????????????????????? | | # #? ???#+#????????????????????????????? | +----------------------------------------------------+ Best States ------------- Heat Dissipation 31 Energy Generation 14 Energy Capacity 265 Matter Stores 300 Matter Capacity 300 Sight Range 16 Terrain Scan Range 14 Terrain Scan Density 10 Additional Mass Support 6 Armor Coverage 225 Evasion (%) 65 Recoil Reduction 3 Item Schematics ----------------- Sensor Array | -10/Materials | Hacked Robot Schematics ------------------ None Fabricated ------------ Nothing Alien Tech Used ----------------- None Achievements -------------- None Challenges ------------ None Game ------ Seed TrackerLauncherChainsword Manual? 0 Play Time 00:29:51 Cumulative 93.4 hours Start 2022.07.20 @ 01:49:46 End 2022.07.20 @ 02:19:55 Sessions 1 Manual Loads 0 Difficulty Rogue Special Mode None Game No. 152 Rogue 106 Adventurer 45 Explorer 1 Win Type - Total 0 Types 0/0/0/0/0/0/0/0/0 Lore% 29 Gallery% 49 Achievement% 34 Wizard Run 0 Options --------- ASCII 0 Keyboard 0 Movement Mouse Keybinds 0 Fullscreen 2 Font 18/X11Bold Map View 76x50 Tactical HUD 1 Map Filters NONE Filters LOW_CONTRAST(13,24,33)|BRIGHTNESS(90)|SATURATION(87) Steam 1 RUN: 3705037b-497a-45ba-95f2-406e17cdabb6